fUSD/lending_fUSD_20250226
["ID","MTS","AMOUNT","RATE_DAILY","PERIOD"]
[354619278,1740595948519,-151.0,0.00039726,14]
[354619279,1740595948528,-292.45166,0.00039726,14]
[354619280,1740595948538,-841.82,0.00039726,14]
[354619281,1740595948548,-500.0,0.00039726,14]
[354619282,1740595948558,-670.19,0.00039726,14]
[354619283,1740595948568,-300.0,0.00039726,14]
[354619284,1740595948578,-1844.05,0.00039726,14]
[354619285,1740595948588,-500.0,0.00039726,14]
[354619286,1740595948598,-747.92,0.00039726,14]
[354619287,1740595948607,-835.83,0.00039726,14]
[354619288,1740595948617,-738.6,0.00039726,14]
[354619289,1740595948627,-1533.87,0.00039726,14]
[354619290,1740595948638,-1414.25,0.00039726,14]
[354619291,1740595948648,-865.08,0.00039726,14]
[354619292,1740595948657,-633.98,0.00039726,14]
[354619293,1740595948667,-600.33,0.00039726,14]
[354619294,1740595948677,-580.36,0.00039726,14]
[354619295,1740595948686,-742.35,0.00039726,14]
[354619296,1740595948696,-732.49,0.00039726,14]
[354619297,1740595948706,-527.1,0.00039726,14]
[354619298,1740595948715,-500.0,0.00039726,14]
[354619299,1740595948725,-935.03,0.00039726,14]
[354619300,1740595948735,-543.41,0.00039726,14]
[354619301,1740595948744,-581.31,0.00039726,14]
[354619302,1740595948754,-689.42,0.00039726,14]
[354619303,1740595948763,-689.49,0.00039726,14]
[354619304,1740595948773,-571.34,0.00039726,14]
[354619305,1740595948783,-696.87,0.00039726,14]
[354619306,1740595948792,-1290.39,0.00039726,14]
[354619307,1740595948802,-546.44,0.00039726,14]
[354619308,1740595948812,-500.0,0.00039726,14]
[354619309,1740595948821,-594.86,0.00039726,14]
[354619310,1740595948831,-635.18,0.00039726,14]
[354619311,1740595948840,-858.4,0.00039726,14]
[354619312,1740595948849,-617.43,0.00039726,14]
[354619313,1740595948858,-500.0,0.00039726,14]
[354619314,1740595948868,-665.21,0.00039726,14]
[354619315,1740595948877,-500.0,0.00039726,14]
[354619316,1740595948889,-1850.02,0.00039726,14]
[354619317,1740595948898,-1161.63,0.00039726,14]
[354619318,1740595948908,-1036.04,0.00039726,14]
[354619319,1740595948917,-2240.29,0.00039726,14]
[354619320,1740595948927,-608.93,0.00039726,14]
[354619321,1740595948936,-500.0,0.00039726,14]
[354619322,1740595948946,-2310.8,0.00039726,14]
[354619323,1740595948956,-500.0,0.00039726,14]
[354619324,1740595948968,-1018.81,0.00039726,14]
[354619325,1740595948978,-500.0,0.00039726,14]
[354619326,1740595948988,-871.69,0.00039726,14]
[354619327,1740595948999,-500.0,0.00039726,14]
[354619328,1740595949011,-1006.27,0.00039726,14]
[354619329,1740595949021,-595.91,0.00039726,14]
[354619330,1740595949031,-1116.49,0.00039726,14]
[354619331,1740595949041,-641.45,0.00039726,14]
[354619332,1740595949051,-351.58,0.00039726,14]
[354619333,1740595949060,-772.83,0.00039726,14]
[354619334,1740595949070,-1308.99,0.00039726,14]
[354619335,1740595949080,-872.15,0.00039726,14]
[354619336,1740595949089,-935.7,0.00039726,14]
[354619337,1740595949098,-500.0,0.00039726,14]
[354619338,1740595949108,-649.25,0.00039726,14]
[354619339,1740595949118,-1082.33,0.00039726,14]
[354619340,1740595949127,-500.0,0.00039726,14]
[354619341,1740595949140,-513.39,0.00039726,14]
[354619342,1740595949150,-1176.81,0.00039726,14]
[354619343,1740595949160,-1686.11,0.00039726,14]
[354619344,1740595949172,-538.09,0.00039726,14]
[354619345,1740595949183,-547.24,0.00039726,14]
[354619346,1740595949194,-811.61,0.00039726,14]
[354619347,1740595949204,-1804.38,0.00039726,14]
[354619348,1740595949214,-969.08,0.00039726,14]
[354619349,1740595949224,-2234.9,0.00039726,14]
[354619350,1740595949234,-877.13,0.00039726,14]
[354619351,1740595949243,-582.64,0.00039726,14]
[354619352,1740595949253,-500.0,0.00039726,14]
[354619353,1740595949263,-500.0,0.00039726,14]
[354619354,1740595949272,-1855.35,0.00039726,14]
[354619355,1740595949282,-500.0,0.00039726,14]
[354619356,1740595949292,-1019.59,0.00039726,14]
[354619357,1740595949302,-2120.11,0.00039726,14]
[354619358,1740595949312,-1021.29,0.00039726,14]
[354619359,1740595949322,-1613.94,0.00039726,14]
[354619360,1740595949332,-572.27,0.00039726,14]
[354619361,1740595949342,-982.48,0.00039726,14]
[354619362,1740595949352,-1105.78,0.00039726,14]
[354619363,1740595949362,-2258.29,0.00039726,14]
[354619364,1740595949372,-500.0,0.00039726,14]
[354619365,1740595949385,-1496.14,0.00039726,14]
[354619366,1740595949396,-782.62,0.00039726,14]
[354619367,1740595949406,-1313.98,0.00039726,14]
[354619368,1740595949416,-633.15,0.00039726,14]
[354619369,1740595949426,-1614.67,0.00039726,14]
[354619370,1740595949443,-777.94,0.00039726,14]
[354619371,1740595949466,-1119.74,0.00039726,14]
[354619372,1740595949485,-630.05,0.00039726,14]
[354619373,1740595949508,-500.0,0.00039726,14]
[354619374,1740595949526,-1550.01,0.00039726,14]
[354619375,1740595949547,-202.02272819,0.00039726,14]
[354619376,1740595949568,-898.54,0.00039726,14]
[354619377,1740595949589,-986.29,0.00039726,14]
[354619378,1740595949609,-666.5,0.00039726,14]
[354619379,1740595949630,-1800.45,0.00039726,14]
[354619380,1740595949649,-1038.19,0.00039726,14]
[354619381,1740595949665,-722.35,0.00039726,14]
[354619382,1740595949683,-777.79,0.00039726,14]
[354619383,1740595949698,-583.31,0.00039726,14]
[354619384,1740595949715,-1016.47,0.00039726,14]
[354619385,1740595949731,-746.65,0.00039726,14]
[354619386,1740595949747,-529.67,0.00039726,14]
[354619387,1740595949762,-500.0,0.00039726,14]
[354619388,1740595949776,-806.05,0.00039726,14]
[354619389,1740595949792,-886.7,0.00039726,14]
[354619390,1740595949807,-820.28,0.00039726,14]
[354619391,1740595949825,-1501.14,0.00039726,14]
[354619392,1740595949840,-328.43475279,0.00039726,14]
[354619393,1740595949855,-921.34,0.00039726,14]
[354619394,1740595949869,-500.0,0.00039726,14]
[354619395,1740595949884,-699.59,0.00039726,14]
[354619396,1740595949899,-1003.76,0.00039726,14]
[354619397,1740595949913,-500.0,0.00039726,14]
[354619398,1740595949928,-1495.63,0.00039726,14]
[354619399,1740595949948,-834.44,0.00039726,14]
[354619400,1740595949964,-831.3,0.00039726,14]
[354619401,1740595949984,-675.74,0.00039726,14]
[354619402,1740595950001,-917.03,0.00039726,14]
[354619403,1740595950019,-551.68,0.00039726,14]
[354619404,1740595950035,-681.62,0.00039726,14]
[354619405,1740595950050,-1958.47,0.00039726,14]
[354619406,1740595950065,-1067.6,0.00039726,14]
[354619407,1740595950080,-500.0,0.00039726,14]
[354619408,1740595950096,-636.63,0.00039726,14]
[354619409,1740595950111,-1007.51,0.00039726,14]
[354619410,1740595950126,-826.67,0.00039726,14]
[354619411,1740595950143,-532.65,0.00039726,14]
[354619412,1740595950160,-1255.98,0.00039726,14]
[354619413,1740595950176,-500.0,0.00039726,14]
[354619414,1740595950193,-1084.65,0.00039726,14]
[354619415,1740595950210,-510.04,0.00039726,14]
[354619416,1740595950227,-1101.48,0.00039726,14]
[354619417,1740595950244,-634.72,0.00039726,14]
[354619418,1740595950259,-842.79,0.00039726,14]
[354619419,1740595950274,-861.46,0.00039726,14]
[354619420,1740595950290,-500.0,0.00039726,14]
[354619421,1740595950305,-765.4,0.00039726,14]
[354619422,1740595950320,-604.9,0.00039726,14]
[354619423,1740595950337,-1116.67,0.00039726,14]
[354619424,1740595950353,-500.0,0.00039726,14]
[354619425,1740595950368,-1441.7,0.00039726,14]
[354619426,1740595950385,-754.28,0.00039726,14]
[354619427,1740595950401,-929.23,0.00039726,14]
[354619428,1740595950416,-1403.66,0.00039726,14]
[354619429,1740595950432,-718.11,0.00039726,14]
[354619430,1740595950447,-1217.5,0.00039726,14]
[354619431,1740595950463,-1107.15,0.00039726,14]
[354619432,1740595950478,-1834.12,0.00039726,14]
[354619433,1740595950493,-902.19,0.00039726,14]
[354619434,1740595950508,-561.55,0.00039726,14]
[354619435,1740595950524,-565.94,0.00039726,14]
[354619436,1740595950540,-1996.52,0.00039726,14]
[354619437,1740595950557,-500.0,0.00039726,14]
[354619438,1740595950574,-563.43,0.00039726,14]
[354619439,1740595950590,-1467.19,0.00039726,14]
[354619440,1740595950605,-1321.18,0.00039726,14]
[354619441,1740595950622,-1902.42,0.00039726,14]
[354619442,1740595950638,-1140.97,0.00039726,14]
[354619443,1740595950655,-528.46,0.00039726,14]
[354619444,1740595950669,-500.0,0.00039726,14]
[354619445,1740595950685,-651.71,0.00039726,14]
[354619446,1740595950700,-1073.87,0.00039726,14]
[354619447,1740595950716,-1235.9,0.00039726,14]
[354619448,1740595950732,-583.0,0.00039726,14]
[354619449,1740595950747,-642.59,0.00039726,14]
[354619450,1740595950763,-1162.07,0.00039726,14]
[354619451,1740595950779,-1175.03,0.00039726,14]
[354619452,1740595950794,-500.0,0.00039726,14]
[354619453,1740595950809,-1123.12,0.00039726,14]
[354619454,1740595950824,-1360.38,0.00039726,14]
[354619455,1740595950839,-990.04,0.00039726,14]
[354619456,1740595950854,-758.81,0.00039726,14]
[354619457,1740595950868,-500.0,0.00039726,14]
[354619458,1740595950883,-1858.11,0.00039726,14]
[354619459,1740595950898,-743.78,0.00039726,14]
[354619460,1740595950913,-836.2,0.00039726,14]
[354619461,1740595950935,-552.16,0.00039726,14]
[354619462,1740595950957,-957.01,0.00039726,14]
[354619463,1740595950982,-1949.61,0.00039726,14]
[354619464,1740595951003,-500.0,0.00039726,14]
[354619465,1740595951023,-1008.01,0.00039726,14]
[354619466,1740595951043,-1466.22,0.00039726,14]
[354619467,1740595951062,-1152.19,0.00039726,14]
[354619468,1740595951082,-2482.2,0.00039726,14]
[354619469,1740595951102,-1828.52,0.00039726,14]
[354619470,1740595951127,-527.63,0.00039726,14]
[354619471,1740595951147,-873.77,0.00039726,14]
[354619472,1740595951163,-1665.67,0.00039726,14]
[354619473,1740595951181,-500.0,0.00039726,14]
[354619474,1740595951198,-1934.6,0.00039726,14]
[354619475,1740595951213,-786.06,0.00039726,14]
[354619476,1740595951229,-1875.12,0.00039726,14]
[354619477,1740595951244,-1075.72,0.00039726,14]
[354619478,1740595951261,-554.85,0.00039726,14]
[354619479,1740595951277,-956.32,0.00039726,14]
[354619480,1740595951293,-1163.37,0.00039726,14]
[354619481,1740595951307,-500.0,0.00039726,14]
[354619482,1740595951323,-1037.67,0.00039726,14]
[354619483,1740595951338,-2110.11,0.00039726,14]
[354619484,1740595951354,-655.67,0.00039726,14]
[354619485,1740595951369,-519.01,0.00039726,14]
[354619486,1740595951386,-500.0,0.00039726,14]
[354619487,1740595951401,-754.12,0.00039726,14]
[354619488,1740595951417,-1595.01,0.00039726,14]
[354619489,1740595951432,-1351.39,0.00039726,14]
[354619490,1740595951447,-883.23,0.00039726,14]
[354619491,1740595951462,-978.64,0.00039726,14]
[354619492,1740595951478,-544.48,0.00039726,14]
[354619493,1740595951493,-1282.93,0.00039726,14]
[354619494,1740595951508,-1979.65,0.00039726,14]
[354619495,1740595951524,-500.0,0.00039726,14]
[354619496,1740595951540,-500.0,0.00039726,14]
[354619497,1740595951549,-1465.82,0.00039726,14]
[354619498,1740595951559,-500.0,0.00039726,14]
[354619499,1740595951568,-1395.89,0.00039726,14]
[354619500,1740595951578,-854.86,0.00039726,14]
[354619501,1740595951884,-1505.0,0.00039726,14]
[354619502,1740595951915,-924.09,0.00039726,14]
[354619503,1740595951925,-711.08,0.00039726,14]
[354619504,1740595951935,-552.43,0.00039726,14]
[354619505,1740595951946,-895.76,0.00039726,14]
[354619506,1740595951955,-932.59,0.00039726,14]
[354619507,1740595951966,-1558.86,0.00039726,14]
[354619508,1740595951978,-912.19,0.00039726,14]
[354619509,1740595951988,-551.46,0.00039726,14]
[354619510,1740595951998,-3271.55,0.00039726,14]
[354619511,1740595952009,-3117.32,0.00039726,14]
[354619512,1740595952019,-896.05,0.00039726,14]
[354619513,1740595952029,-1469.5,0.00039726,14]
[354619514,1740595952039,-218.55327148,0.00039726,14]
[354619515,1740595952049,-500.0,0.00039726,14]
[354619516,1740595952059,-1970.34,0.00039726,14]
[354619517,1740595952070,-1219.67,0.00039726,14]
[354619518,1740595952081,-500.0,0.00039726,14]
[354619519,1740595952092,-500.0,0.00039726,14]
[354619520,1740595952103,-1258.23,0.00039726,14]
[354619521,1740595952113,-1003.98,0.00039726,14]
[354619522,1740595952122,-802.71,0.00039726,14]
[354619523,1740595952132,-1048.22,0.00039726,14]
[354619524,1740595952148,-215.10268006,0.00039726,14]
[354619525,1740595952159,-500.0,0.00039726,14]
[354619526,1740595952170,-12754.69,0.00039726,14]
[354619527,1740595952181,-760.48,0.00039726,14]
[354619528,1740595952193,-1559.74,0.00039726,14]
[354619529,1740595952204,-1039.17,0.00039726,14]
[354619530,1740595952214,-968.47,0.00039726,14]
[354619531,1740595952225,-975.3,0.00039726,14]
[354619532,1740595952235,-884.61,0.00039726,14]
[354619533,1740595952246,-677.65,0.00039726,14]
[354619534,1740595952258,-581.51,0.00039726,14]
[354619535,1740595952268,-559.35,0.00039726,14]
[354619536,1740595952278,-614.88056379,0.00039726,14]
[354619537,1740595952288,-1068.0,0.00039726,14]
[354619538,1740595952298,-1472.3,0.00039726,14]
[354619539,1740595952307,-1096.63,0.00039726,14]
[354619540,1740595952316,-882.85,0.00039726,14]
[354619541,1740595952326,-1708.56,0.00039726,14]
[354619542,1740595952336,-505.62,0.00039726,14]
[354619543,1740595952345,-966.9,0.00039726,14]
[354619544,1740595952355,-1141.53,0.00039726,7]
[354619545,1740595952364,-1382.5,0.00039726,14]
[354619546,1740595952374,-811.04,0.00039726,14]
[354619547,1740595952383,-669.94,0.00039726,14]
[354619548,1740595952397,-691.77,0.00039726,14]
[354619549,1740595952407,-530.0,0.00039726,14]
[354619550,1740595952418,-1910.93,0.00039726,14]
[354619551,1740595952428,-500.0,0.00039726,14]
[354619552,1740595952438,-874.49,0.00039726,14]
[354619553,1740595952448,-776.22,0.00039726,14]
[354619554,1740595952457,-2493.41,0.00039726,14]
[354619555,1740595952467,-811.0,0.00039726,14]
[354619556,1740595952477,-2143.28,0.00039726,14]
[354619557,1740595952486,-2617.36,0.00039726,14]
[354619558,1740595952495,-1621.78,0.00039726,14]
[354619559,1740595952505,-2319.53,0.00039726,14]
[354619560,1740595952514,-500.0,0.00039726,14]
[354619561,1740595952523,-500.0,0.00039726,14]
[354619562,1740595952533,-529.04,0.00039726,14]
[354619563,1740595952542,-768.45,0.00039726,14]
[354619564,1740595952551,-500.0,0.00039726,14]
[354619565,1740595952561,-1163.2,0.00039726,14]
[354619566,1740595952570,-500.0,0.00039726,14]
[354619567,1740595952579,-500.0,0.00039726,14]
[354619568,1740595952589,-911.1,0.00039726,14]
[354619569,1740595952598,-1280.98,0.00039726,14]
[354619570,1740595952609,-2143.46,0.00039726,14]
[354619571,1740595952618,-500.0,0.00039726,14]
[354619572,1740595952628,-1855.75,0.00039726,14]
[354619573,1740595952640,-873.58,0.00039726,14]
[354619574,1740595952649,-939.46,0.00039726,14]
[354619575,1740595952659,-500.0,0.00039726,14]
[354619576,1740595952668,-302.50630478,0.00039726,14]
[354619577,1740595952677,-1902.32,0.00039726,14]
[354619578,1740595952686,-457.13,0.00039726,14]
[354619579,1740595952698,-1142.01,0.00039726,14]
[354619580,1740595952707,-938.37,0.00039726,14]
[354619581,1740595952716,-155.550213,0.00039726,14]
[354619582,1740595952725,-800.79,0.00039726,14]
[354619583,1740595952734,-512.47,0.00039726,14]
[354619584,1740595952743,-2507.28,0.00039726,2]
[354619585,1740595952752,-731.9,0.00039726,14]
[354619586,1740595952762,-1981.71,0.00039726,14]
[354619587,1740595952771,-500.0,0.00039726,14]
[354619588,1740595952781,-1276.51,0.00039726,14]
[354619589,1740595952790,-708.24,0.00039726,14]
[354619590,1740595952800,-500.0,0.00039726,14]
[354619591,1740595952809,-2733.74,0.00039726,14]
[354619592,1740595952818,-2252.01,0.00039726,14]
[354619593,1740595952827,-891.14,0.00039726,14]
[354619594,1740595952836,-195.687816,0.00039726,14]
[354619595,1740595952845,-552.36,0.00039726,14]
[354619596,1740595952855,-630.12,0.00039726,14]
[354619597,1740595952865,-500.0,0.00039726,14]
[354619598,1740595952874,-642.98,0.00039726,14]
[354619599,1740595952883,-1991.31,0.00039726,14]
[354619600,1740595952893,-1022.27,0.00039726,14]
[354619601,1740595952903,-1294.07,0.00039726,14]
[354619602,1740595952912,-1853.21,0.00039726,14]
[354619603,1740595952922,-630.96,0.00039726,14]
[354619604,1740595952932,-1573.28,0.00039726,14]
[354619605,1740595952942,-151.0,0.00039726,14]
[354619606,1740595952952,-151.0,0.00039726,14]
[354619607,1740595952961,-151.0,0.00039726,14]
[354619608,1740595952974,-2426.57,0.00039726,14]
[354619609,1740595952984,-201.655621,0.00039726,14]
[354619610,1740595952994,-2490.78,0.00039726,14]
[354619611,1740595953006,-1150.32,0.00039726,14]
[354619612,1740595953017,-715.02,0.00039726,14]
[354619613,1740595953028,-3484.94,0.00039726,14]
[354619614,1740595953038,-2771.33,0.00039726,14]
[354619615,1740595953049,-500.0,0.00039726,14]
[354619616,1740595953059,-500.0,0.00039726,14]
[354619617,1740595953069,-1596.62,0.00039726,14]
[354619618,1740595953079,-1876.78,0.00039726,14]
[354619619,1740595953090,-1560.4,0.00039726,14]
[354619620,1740595953100,-6192.85,0.00039726,14]
[354619621,1740595953110,-647.32,0.00039726,14]
[354619622,1740595953120,-1726.29,0.00039726,14]
[354619623,1740595953130,-1676.26,0.00039726,14]
[354619624,1740595953143,-2725.95,0.00039726,14]
[354619625,1740595953152,-563.72,0.00039726,14]
[354619626,1740595953162,-944.42,0.00039726,14]
[354619627,1740595953173,-3837.57,0.00039726,14]
[354619628,1740595953183,-1361.35,0.00039726,14]
[354619629,1740595953193,-1302.57,0.00039726,14]
[354619630,1740595953203,-688.53,0.00039726,14]
[354619631,1740595953212,-11693.75,0.00039726,14]
[354619632,1740595953222,-861.86,0.00039726,14]
[354619633,1740595953232,-2812.52,0.00039726,14]
[354619634,1740595953242,-3063.11,0.00039726,14]
[354619635,1740595953251,-1132.99,0.00039726,14]
[354619636,1740595953261,-2332.02,0.00039726,14]
[354619637,1740595953272,-3032.5,0.00039726,14]
[354619638,1740595953282,-1403.52,0.00039726,14]
[354619639,1740595953292,-2514.92,0.00039726,14]
[354619640,1740595953302,-840.17,0.00039726,14]
[354619641,1740595953311,-3285.15,0.00039726,14]
[354619642,1740595953321,-1217.25,0.00039726,14]
[354619643,1740595953331,-2864.92,0.00039726,14]
[354619644,1740595953341,-829.58,0.00039726,14]
[354619645,1740595953351,-521.32,0.00039726,14]
[354619646,1740595953361,-1548.49,0.00039726,14]
[354619647,1740595953373,-1797.4,0.00039726,14]
[354619648,1740595953383,-3783.79,0.00039726,14]
[354619649,1740595953397,-1141.09,0.00039726,14]
[354619650,1740595953406,-577.91,0.00039726,14]
[354619651,1740595953416,-6297.9,0.00039726,14]
[354619652,1740595953425,-2194.13,0.00039726,14]
[354619653,1740595953435,-2625.14,0.00039726,14]
[354619654,1740595953445,-1289.77,0.00039726,14]
[354619655,1740595953454,-564.43,0.00039726,14]
[354619656,1740595953464,-2622.68,0.00039726,14]
[354619657,1740595953475,-3149.85,0.00039726,14]
[354619658,1740595953485,-806.4,0.00039726,14]
[354619659,1740595953495,-2632.85,0.00039726,14]
[354619660,1740595953505,-2112.2,0.00039726,14]
[354619661,1740595953516,-3833.32,0.00039726,14]
[354619662,1740595953526,-1648.8,0.00039726,14]
[354619663,1740595953536,-5487.93,0.00039726,14]
[354619664,1740595953545,-2311.59,0.00039726,14]
[354619665,1740595953555,-974.58,0.00039726,14]
[354619666,1740595953564,-565.43,0.00039726,14]
[354619667,1740595953574,-1343.0,0.00039726,14]
[354619668,1740595953584,-11841.49,0.00039726,14]
[354619669,1740595953593,-567.13,0.00039726,14]
[354619670,1740595953603,-3413.54,0.00039726,14]
[354619671,1740595953613,-1833.27,0.00039726,14]
[354619672,1740595953623,-995.26,0.00039726,14]
[354619673,1740595953632,-3517.26,0.00039726,14]
[354619674,1740595953644,-7439.57,0.00039726,14]
[354619675,1740595953653,-1238.69,0.00039726,14]
[354619676,1740595953664,-1700.63,0.00039726,14]
[354619677,1740595953673,-2752.94,0.00039726,14]
[354619678,1740595953682,-4507.25,0.00039726,14]
[354619679,1740595953692,-1862.26,0.00039726,14]
[354619680,1740595953702,-1154.79,0.00039726,14]
[354619681,1740595953711,-639.34,0.00039726,14]
[354619682,1740595953721,-1572.85,0.00039726,14]
[354619683,1740595953730,-3421.4,0.00039726,14]
[354619684,1740595953739,-1778.87,0.00039726,14]
[354619685,1740595953749,-1616.96,0.00039726,14]
[354619686,1740595953759,-696.16,0.00039726,14]
[354619687,1740595953769,-9182.73,0.00039726,14]
[354619688,1740595953779,-6709.93,0.00039726,14]
[354619689,1740595953789,-683.41,0.00039726,14]
[354619690,1740595953799,-682.72,0.00039726,14]
[354619691,1740595953808,-151.0,0.00039726,14]
[354619692,1740595953818,-151.0,0.00039726,14]
[354619693,1740595953827,-151.0,0.00039726,14]
[354619694,1740595953836,-151.0,0.00039726,14]
[354619695,1740595953846,-4316.65,0.00039726,14]
[354619696,1740595953855,-151.0,0.00039726,14]
[354619697,1740595953865,-151.0,0.00039726,14]
[354619698,1740595953877,-151.0,0.00039726,14]
[354619699,1740595953888,-216.427449,0.00039726,14]
[354619700,1740595953898,-546.58,0.00039726,14]
[354619701,1740595953908,-3317.95,0.00039726,14]
[354619702,1740595953918,-1576.59,0.00039726,14]
[354619703,1740595953929,-604.02,0.00039726,14]
[354619704,1740595953940,-682.23,0.00039726,14]
[354619705,1740595953950,-876.15,0.00039726,14]
[354619706,1740595953961,-1898.38,0.00039726,14]
[354619707,1740595953974,-3418.9,0.00039726,14]
[354619708,1740595953985,-749.16,0.00039726,14]
[354619709,1740595953996,-2938.03,0.00039726,14]
[354619710,1740595954008,-1228.02,0.00039726,14]
[354619711,1740595954021,-2258.95,0.00039726,14]
[354619712,1740595954031,-1052.77,0.00039726,14]
[354619713,1740595954041,-500.0,0.00039726,14]
[354619714,1740595954051,-932.43,0.00039726,14]
[354619715,1740595954061,-1087.18,0.00039726,14]
[354619716,1740595954071,-151.0,0.00039726,14]
[354619717,1740595954081,-3770.5,0.00039726,14]
[354619718,1740595954090,-151.0,0.00039726,14]
[354619719,1740595954101,-151.0,0.00039726,14]
[354619720,1740595954111,-151.0,0.00039726,14]
[354619721,1740595954120,-158.548769,0.00039726,14]
[354619722,1740595954130,-4443.37,0.00039726,14]
[354619723,1740595954142,-841.55,0.00039726,14]
[354619724,1740595954152,-4370.98,0.00039726,14]
[354619725,1740595954162,-1077.8,0.00039726,14]
[354619726,1740595954171,-1662.55,0.00039726,14]
[354619727,1740595954181,-1684.75,0.00039726,14]
[354619728,1740595954191,-732.3,0.00039726,14]
[354619729,1740595954200,-669.42,0.00039726,14]
[354619730,1740595954210,-2153.43,0.00039726,14]
[354619731,1740595954219,-2455.03,0.00039726,14]
[354619732,1740595954228,-500.0,0.00039726,14]
[354619733,1740595954238,-8707.22,0.00039726,14]
[354619734,1740595954247,-555.94,0.00039726,14]
[354619735,1740595954257,-661.77,0.00039726,14]
[354619736,1740595954266,-1962.86,0.00039726,14]
[354619737,1740595954276,-14121.36,0.00039726,14]
[354619738,1740595954286,-1465.58,0.00039726,14]
[354619739,1740595954296,-3029.66,0.00039726,14]
[354619740,1740595954305,-3158.55,0.00039726,14]
[354619741,1740595954315,-677.06,0.00039726,14]
[354619742,1740595954324,-1124.82,0.00039726,14]
[354619743,1740595954333,-1234.59,0.00039726,14]
[354619744,1740595954343,-1087.29,0.00039726,14]
[354619745,1740595954353,-1184.83,0.00039726,14]
[354619746,1740595954363,-766.23,0.00039726,14]
[354619747,1740595954372,-1001.3,0.00039726,14]
[354619748,1740595954383,-617.69,0.00039726,14]
[354619749,1740595954397,-1731.67,0.00039726,14]
[354619750,1740595954407,-527.05,0.00039726,14]
[354619751,1740595954416,-3138.97,0.00039726,14]
[354619752,1740595954426,-1244.63,0.00039726,14]
[354619753,1740595954436,-850.11,0.00039726,14]
[354619754,1740595954446,-2099.68,0.00039726,14]
[354619755,1740595954455,-1394.32,0.00039726,14]
[354619756,1740595954465,-1086.92,0.00039726,14]
[354619757,1740595954474,-1256.63,0.00039726,14]
[354619758,1740595954484,-1776.24,0.00039726,14]
[354619759,1740595954494,-3802.94,0.00039726,14]
[354619760,1740595954504,-772.03,0.00039726,14]
[354619761,1740595954514,-500.0,0.00039726,14]
[354619762,1740595954523,-773.62,0.00039726,14]
[354619763,1740595954533,-666.36,0.00039726,14]
[354619764,1740595954543,-1317.17,0.00039726,14]
[354619765,1740595954553,-500.0,0.00039726,14]
[354619766,1740595954563,-500.0,0.00039726,14]
[354619767,1740595954572,-1507.85,0.00039726,14]
[354619768,1740595954583,-1264.32,0.00039726,14]
[354619769,1740595954593,-4383.06,0.00039726,14]
[354619770,1740595954603,-2961.3,0.00039726,14]
[354619771,1740595954613,-1388.89,0.00039726,14]
[354619772,1740595954623,-556.93,0.00039726,14]
[354619773,1740595954633,-3155.81,0.00039726,14]
[354619774,1740595954647,-561.98,0.00039726,14]
[354619775,1740595954657,-2270.77,0.00039726,14]
[354619776,1740595954667,-1000.0,0.0003977,2]
[354619777,1740595954676,-603.75218809,0.0003977,2]